[Event "LJ Slovak Open 2022"]
[Site "Liptovsky Jan"]
[Date "2022.06.25"]
[Round "4.56"]
[White "Livnansky, Tomas"]
[Black "Magdova, Lucia"]
[Result "1-0"]
[ECO "D07"]
[WhiteElo "1244"]
[BlackElo "1055"]
[Annotator "NA RC"]
[PlyCount "91"]
[EventDate "2022.06.23"]
[EventType "swiss"]
[EventCountry "SVK"]
[SourceTitle "playchess.com"]
[Source "ChessBase"]
[SourceQuality "1"]
[TimeControl "3600+30"]

1. d4 {[%emt 0:00:04]} d5 {[%emt 0:00:11]} 2. c4 {[%emt 0:00:11]} dxc4 {[%emt 0:00:12]} 3. e4 {[%emt 0:00:19]} Nf6 {[%emt 0:02:49]} 4. Nc3 {[%emt 0:00:41]} Nc6 {[%emt 0:01:29]} 5. Nf3 {[%emt 0:00:27]} Bg4 {[%emt 0:00:42]} 6. d5 {[%emt 0:01:42]} Bxf3 {[%emt 0:07:40]} 7. Qxf3 {[%emt 0:00:30]} Nd4 {[%emt 0:01:03]} 8. Qd1 {[%emt 0:01:36]} e5 {[%emt 0:02:57]} 9. dxe6 {[%emt 0:01:17]} Nxe6 {[%emt 0:01:02]} 10. Qa4+ {[%emt 0:02:39]} Qd7 {[%emt 0:01:05]} 11. Qxd7+ {[%emt 0:03:39]} Nxd7 {[%emt 0:00:10]} 12. Bxc4 {[%emt 0:00:07]} Bb4 {[%emt 0:01:23]} 13. Bd2 {[%emt 0:00:09]} O-O-O {[%emt 0:00:38]} 14. a3 {[%emt 0:00:34]} Ba5 {[%emt 0:00:27]} 15. b4 {[%emt 0:02:02]} Bb6 {[%emt 0:00:22]} 16. Nd5 {[%emt 0:00:12]} Bd4 {[%emt 0:04:05]} 17. Bc3 {[%emt 0:00:10]} Bxc3+ {[%emt 0:01:00]} 18. Nxc3 {[%emt 0:00:12]} Ne5 {[%emt 0:00:52]} 19. Bxe6+ {[%emt 0:04:56]} fxe6 {[%emt 0:00:21]} 20. O-O {[%emt 0:03:12]} Rd2 {[%emt 0:01:22]} 21. Rfd1 {[%emt 0:04:25]} Rhd8 {[%emt 0:00:35]} 22. Rxd2 {[%emt 0:01:27]} Rxd2 {[%emt 0:00:13]} 23. Rd1 {[%emt 0:00:01]} Rxd1+ {[%emt 0:00:55]} 24. Nxd1 {[%emt 0:00:36]} Kd7 {[%emt 0:01:01]} 25. Kf1 {[%emt 0:01:39]} b6 {[%emt 0:02:00]} 26. Ke2 {[%emt 0:00:16]} Kc6 {[%emt 0:01:22]} 27. Nc3 {[%emt 0:00:35]} a5 {[%emt 0:01:07]} 28. bxa5 {[%emt 0:01:48]} bxa5 {[%emt 0:00:13]} 29. f4 {[%emt 0:00:19]} Nc4 {[%emt 0:04:35]} 30. a4 {[%emt 0:01:50]} Kc5 {[%emt 0:02:25]} 31. f5 {[%emt 0:03:24]} exf5 {[%emt 0:00:24]} 32. exf5 {[%emt 0:00:32]} Nd6 {[%emt 0:02:07]} 33. g4 {[%emt 0:00:35]} Kb4 {[%emt 0:02:48]} 34. Kd3 {[%emt 0:00:15]} c5 {[%emt 0:06:14]} 35. Kc2 {[%emt 0:01:26]} Nf7 {[%emt 0:04:57]} 36. h4 {[%emt 0:00:34]} g5 {[%emt 0:03:06]} 37. hxg5 {[%emt 0:01:34]} Nxg5 {[%emt 0:00:14]} 38. f6 {[%emt 0:00:38]} c4 {[%emt 0:02:50]} 39. Ne4 {[%emt 0:00:37]} Nf7 {[%emt 0:02:38]} 40. Nc3 {[%emt 0:01:04]} h6 {[%emt 0:00:45]} 41. Nb1 {[%emt 0:06:11]} Ng5 {[%emt 0:00:50]} 42. Nd2 {[%emt 0:03:43]} Nf7 {[%emt 0:08:06]} 43. Ne4 {[%emt 0:00:55]} Ng5 {[%emt 0:01:49]} 44. Ng3 {[%emt 0:01:50]} Nf7 {[%emt 0:00:10]} 45. Ne4 {[%emt 0:00:30]} Ng5 {[%emt 0:00:07]} 46. Ng3 {[%emt 0:01:14]} 1-0

[Event "LJ Slovak Open 2022"]
[Site "Liptovsky Jan"]
[Date "2022.06.25"]
[Round "4.57"]
[White "Sotnik, Simon"]
[Black "Polackova, Eva"]
[Result "1-0"]
[ECO "D53"]
[WhiteElo "1038"]
[BlackElo "1253"]
[Annotator "NA RC"]
[PlyCount "57"]
[EventDate "2022.06.23"]
[EventType "swiss"]
[EventCountry "SVK"]
[SourceTitle "playchess.com"]
[Source "ChessBase"]
[SourceQuality "1"]
[TimeControl "3600+30"]

1. d4 {[%emt 0:00:14]} d5 {[%emt 0:00:16]} 2. c4 {[%emt 0:00:53]} dxc4 {[%emt 0:00:55]} 3. Nf3 {[%emt 0:00:59]} Nf6 {[%emt 0:00:38]} 4. Nc3 {[%emt 0:00:50]} e6 {[%emt 0:01:21]} 5. Bg5 {[%emt 0:01:34]} Nc6 {[%emt 0:02:36]} 6. e4 {[%emt 0:02:18]} Be7 {[%emt 0:01:42]} 7. Bxf6 {[%emt 0:00:49]} Bxf6 {[%emt 0:00:48]} 8. e5 {[%emt 0:01:27]} Be7 {[%emt 0:01:07]} 9. Bxc4 {[%emt 0:02:03]} O-O {[%emt 0:02:08]} 10. O-O {[%emt 0:01:53]} b6 {[%emt 0:04:59]} 11. d5 {[%emt 0:07:17]} exd5 {[%emt 0:02:25]} 12. Bxd5 {[%emt 0:00:58]} Bb7 {[%emt 0:01:23]} 13. e6 {[%emt 0:03:14]} f6 {[%emt 0:02:30]} 14. Nh4 {[%emt 0:05:13]} Rb8 {[%emt 0:06:37]} 15. Nf5 {[%emt 0:01:44]} Re8 {[%emt 0:03:06]} 16. Qg4 {[%emt 0:00:56]} g6 {[%emt 0:01:25]} 17. Rad1 {[%emt 0:00:35]} Qc8 {[%emt 0:00:59]} 18. Nb5 {[%emt 0:01:04]} a6 {[%emt 0:04:59]} 19. Bxc6 {[%emt 0:00:37]} Bxc6 {[%emt 0:00:34]} 20. Na7 {[%emt 0:00:34]} Qb7 {[%emt 0:00:23]} 21. Nxc6 {[%emt 0:00:34]} Qxc6 {[%emt 0:00:34]} 22. Rd7 {[%emt 0:00:26]} Bf8 {[%emt 0:01:37]} 23. Qh3 {[%emt 0:01:16]} h5 {[%emt 0:04:33]} 24. Nd4 {[%emt 0:01:09]} Qe4 {[%emt 0:02:28]} 25. Qe3 {[%emt 0:00:46]} Qxe3 {[%emt 0:01:08]} 26. fxe3 {[%emt 0:00:18]} Bc5 {[%emt 0:01:19]} 27. Rxf6 {[%emt 0:01:50]} g5 {[%emt 0:02:25]} 28. Rg6+ {[%emt 0:00:47]} Kf8 {[%emt 0:00:29]} 29. Rf7# {[%emt 0:00:24]} 1-0

[Event "LJ Slovak Open 2022"]
[Site "Liptovsky Jan"]
[Date "2022.06.25"]
[Round "4.58"]
[White "Haasova, Nina"]
[Black "Stricova Viktoria Lea"]
[Result "1-0"]
[ECO "D02"]
[WhiteElo "1216"]
[BlackElo "1025"]
[Annotator "NA RC"]
[PlyCount "43"]
[EventDate "2022.06.23"]
[EventType "swiss"]
[EventCountry "SVK"]
[SourceTitle "playchess.com"]
[Source "ChessBase"]
[SourceQuality "1"]
[TimeControl "3600+30"]

1. d4 {[%emt 0:00:05]} d5 {[%emt 0:07:38]} 2. Nf3 {[%emt 0:00:15]} Nc6 {[%emt 0:00:44]} 3. e3 {[%emt 0:00:17]} a6 {[%emt 0:00:42]} 4. Bd3 {[%emt 0:00:30]} Nf6 {[%emt 0:04:16]} 5. O-O {[%emt 0:00:45]} e6 {[%emt 0:04:21]} 6. Nbd2 {[%emt 0:01:23]} Bd6 {[%emt 0:04:50]} 7. e4 {[%emt 0:01:23]} Bd7 {[%emt 0:02:42]} 8. e5 {[%emt 0:00:38]} Qe7 {[%emt 0:06:18]} 9. exd6 {[%emt 0:01:22]} Qxd6 {[%emt 0:01:17]} 10. h3 {[%emt 0:00:39]} O-O-O {[%emt 0:02:04]} 11. a3 {[%emt 0:00:57]} Rde8 {[%emt 0:07:07]} 12. c3 {[%emt 0:02:20]} e5 {[%emt 0:20:10]} 13. dxe5 {[%emt 0:01:31]} Nxe5 {[%emt 0:01:26]} 14. Nxe5 {[%emt 0:00:43]} Qxe5 {[%emt 0:01:05]} 15. Nf3 {[%emt 0:00:47]} Qd6 {[%emt 0:01:55]} 16. c4 {[%emt 0:00:59]} dxc4 {[%emt 0:00:49]} 17. Bxc4 {[%emt 0:00:21]} Qc5 {[%emt 0:00:45]} 18. Bd3 {[%emt 0:00:48]} Qd5 {[%emt 0:00:39]} 19. Bf4 {[%emt 0:00:57]} Bb5 {[%emt 0:00:38]} 20. Bxb5 {[%emt 0:01:08]} axb5 {[%emt 0:00:19]} 21. Qc2 {[%emt 0:00:49]} Rd8 {[%emt 0:00:40]} 22. Qxc7# {[%emt 0:00:28]} 1-0

[Event "LJ Slovak Open 2022"]
[Site "Liptovsky Jan"]
[Date "2022.06.25"]
[Round "4.59"]
[White "Lesko Ondrej"]
[Black "Kovacik, Oliver"]
[Result "0-1"]
[ECO "B08"]
[WhiteElo "1000"]
[BlackElo "1331"]
[Annotator "NA RC"]
[PlyCount "86"]
[EventDate "2022.06.23"]
[EventType "swiss"]
[EventCountry "SVK"]
[SourceTitle "playchess.com"]
[Source "ChessBase"]
[SourceQuality "1"]
[TimeControl "3600+30"]

1. e4 {[%emt 0:00:11]} Nf6 {[%emt 0:00:08]} 2. Nc3 {[%emt 0:00:33]} d6 {[%emt 0:00:25]} 3. Nf3 {[%emt 0:00:30]} g6 {[%emt 0:00:34]} 4. Bc4 {[%emt 0:00:42]} Bg7 {[%emt 0:00:38]} 5. d4 {[%emt 0:00:52]} Nxe4 {[%emt 0:00:45]} 6. Nxe4 {[%emt 0:00:43]} d5 {[%emt 0:00:01]} 7. Bxd5 {[%emt 0:01:13]} Qxd5 {[%emt 0:00:08]} 8. Nc3 {[%emt 0:00:35]} Qd6 {[%emt 0:00:48]} 9. O-O {[%emt 0:01:34]} a6 {[%emt 0:00:30]} 10. Ne4 {[%emt 0:02:00]} Qd8 {[%emt 0:00:24]} 11. Bf4 {[%emt 0:01:37]} Bf5 {[%emt 0:00:26]} 12. Nc3 {[%emt 0:01:12]} Nc6 {[%emt 0:00:48]} 13. Be3 {[%emt 0:00:58]} O-O {[%emt 0:01:25]} 14. Re1 {[%emt 0:01:39]} Qd7 {[%emt 0:03:30]} 15. g3 {[%emt 0:00:51]} Nb4 {[%emt 0:00:57]} 16. Rc1 {[%emt 0:03:28]} Qc6 {[%emt 0:00:38]} 17. a3 {[%emt 0:01:23]} Nxc2 {[%emt 0:00:47]} 18. Rxc2 {[%emt 0:00:41]} Bxc2 {[%emt 0:00:31]} 19. Qxc2 {[%emt 0:00:53]} Qxf3 {[%emt 0:00:07]} 20. Qe4 {[%emt 0:05:48]} Qxe4 {[%emt 0:00:09]} 21. Nxe4 {[%emt 0:00:16]} Rfd8 {[%emt 0:00:18]} 22. Rd1 {[%emt 0:01:01]} e5 {[%emt 0:00:08]} 23. d5 {[%emt 0:01:39]} b6 {[%emt 0:00:36]} 24. Bg5 {[%emt 0:01:39]} Rf8 {[%emt 0:01:21]} 25. b4 {[%emt 0:01:28]} f6 {[%emt 0:00:09]} 26. Be3 {[%emt 0:01:05]} Rfd8 {[%emt 0:00:25]} 27. a4 {[%emt 0:01:13]} b5 {[%emt 0:00:38]} 28. axb5 {[%emt 0:00:21]} axb5 {[%emt 0:00:02]} 29. Bc5 {[%emt 0:02:29]} Ra2 {[%emt 0:00:08]} 30. Nc3 {[%emt 0:01:07]} Rc2 {[%emt 0:00:04]} 31. Nxb5 {[%emt 0:00:47]} c6 {[%emt 0:00:31]} 32. Na3 {[%emt 0:01:20]} Rc3 {[%emt 0:00:00]} 33. Nb1 {[%emt 0:01:36]} Rb3 {[%emt 0:00:30]} 34. Nd2 {[%emt 0:03:34]} Rd3 {[%emt 0:00:31]} 35. Be7 {[%emt 0:00:30]} R8xd5 {[%emt 0:00:01]} 36. Rb1 {[%emt 0:01:18]} Rxd2 {[%emt 0:00:14]} 37. Ra1 {[%emt 0:00:57]} Rc2 {[%emt 0:00:16]} 38. Ra8+ {[%emt 0:00:51]} Kf7 {[%emt 0:00:02]} 39. Ra7 {[%emt 0:00:54]} Ke6 {[%emt 0:00:27]} 40. g4 {[%emt 0:01:26]} Rdd2 {[%emt 0:00:31]} 41. Ra6 {[%emt 0:00:55]} Rxf2 {[%emt 0:00:00]} 42. b5 {[%emt 0:00:41]} Rfd2 {[%emt 0:00:17]} 43. b6 {[%emt 0:00:28]} Rd1# {[%emt 0:00:00]} 0-1

[Event "LJ Slovak Open 2022"]
[Site "Liptovsky Jan"]
[Date "2022.06.25"]
[Round "4.60"]
[White "Muller, Tomas"]
[Black "Moravcik Alex"]
[Result "1-0"]
[ECO "C62"]
[WhiteElo "1240"]
[BlackElo "1000"]
[Annotator "NA RC"]
[PlyCount "57"]
[EventDate "2022.06.23"]
[EventType "swiss"]
[EventCountry "SVK"]
[SourceTitle "playchess.com"]
[Source "ChessBase"]
[SourceQuality "1"]
[TimeControl "3600+30"]

1. e4 {[%emt 0:00:14]} e5 {[%emt 0:00:10]} 2. Nf3 {[%emt 0:00:36]} Nc6 {[%emt 0:00:11]} 3. Bb5 {[%emt 0:01:34]} d6 {[%emt 0:00:31]} 4. d4 {[%emt 0:00:54]} Bg4 {[%emt 0:01:33]} 5. d5 {[%emt 0:01:18]} a6 {[%emt 0:00:40]} 6. dxc6 {[%emt 0:01:25]} axb5 {[%emt 0:00:34]} 7. cxb7 {[%emt 0:02:10]} Rb8 {[%emt 0:00:13]} 8. h3 {[%emt 0:01:38]} Bxf3 {[%emt 0:00:25]} 9. Qxf3 {[%emt 0:01:16]} Rxb7 {[%emt 0:00:17]} 10. Qc3 {[%emt 0:01:51]} Rb6 {[%emt 0:01:28]} 11. Be3 {[%emt 0:00:48]} c5 {[%emt 0:01:03]} 12. b4 {[%emt 0:01:21]} Rc6 {[%emt 0:01:49]} 13. Na3 {[%emt 0:00:56]} Qb6 {[%emt 0:00:51]} 14. Qd3 {[%emt 0:03:06]} Qb7 {[%emt 0:00:48]} 15. Nxb5 {[%emt 0:00:52]} cxb4 {[%emt 0:00:40]} 16. O-O {[%emt 0:00:26]} Nf6 {[%emt 0:00:17]} 17. Rab1 {[%emt 0:01:15]} Nxe4 {[%emt 0:03:52]} 18. Qxe4 {[%emt 0:02:53]} Qxb5 {[%emt 0:01:57]} 19. Rxb4 {[%emt 0:01:01]} Qa5 {[%emt 0:01:43]} 20. Qxc6+ {[%emt 0:00:16]} Ke7 {[%emt 0:10:20]} 21. Rb7+ {[%emt 0:01:04]} Kf6 {[%emt 0:00:19]} 22. Qd7 {[%emt 0:00:30]} Qd5 {[%emt 0:00:40]} 23. f4 {[%emt 0:01:07]} g6 {[%emt 0:00:49]} 24. fxe5+ {[%emt 0:00:09]} Kg7 {[%emt 0:02:20]} 25. Rxf7+ {[%emt 0:01:46]} Kg8 {[%emt 0:00:25]} 26. Rxh7 {[%emt 0:00:12]} Qd1+ {[%emt 0:01:15]} 27. Kh2 {[%emt 0:00:16]} Qd5 {[%emt 0:00:34]} 28. Rxh8+ {[%emt 0:00:23]} Kxh8 {[%emt 0:01:01]} 29. Qh7# {[%emt 0:00:13]} 1-0

[Event "LJ Slovak Open 2022"]
[Site "Liptovsky Jan"]
[Date "2022.06.25"]
[Round "5.1"]
[White "Wisniewski, Michal"]
[Black "Manik, Mikulas"]
[Result "1/2-1/2"]
[ECO "A48"]
[WhiteElo "2073"]
[BlackElo "2368"]
[Annotator "RC"]
[PlyCount "32"]
[EventDate "2022.06.23"]
[EventType "swiss"]
[EventCountry "SVK"]
[SourceTitle "playchess.com"]
[Source "ChessBase"]
[SourceQuality "1"]
[TimeControl "3600+30"]

1. Nf3 {[%emt 0:00:03]} Nf6 {[%emt 0:00:50]} 2. d4 {[%emt 0:00:22]} g6 {[%emt 0:00:06]} 3. Nbd2 {[%emt 0:00:05]} c5 {[%emt 0:00:39]} 4. dxc5 {[%emt 0:00:06]} Qa5 {[%emt 0:00:27]} 5. a3 {[%emt 0:00:05]} Qxc5 {[%emt 0:00:11]} 6. b4 {[%emt 0:00:07]} Qc7 {[%emt 0:00:37]} 7. Bb2 {[%emt 0:00:06]} Bg7 {[%emt 0:01:40]} 8. c4 {[%emt 0:00:37]} d6 {[%emt 0:01:15]} 9. e3 {[%emt 0:00:11]} O-O {[%emt 0:00:07]} 10. Bd3 {[%emt 0:00:06]} Nbd7 {[%emt 0:00:36]} 11. O-O {[%emt 0:00:28]} b6 {[%emt 0:00:19]} 12. Qb3 {[%emt 0:00:07]} Bb7 {[%emt 0:00:26]} 13. Rfe1 {[%emt 0:00:10]} Rad8 {[%emt 0:02:03]} 14. e4 {[%emt 0:02:11]} e6 {[%emt 0:13:11]} 15. Rac1 {[%emt 0:05:30]} Rfe8 {[%emt 0:00:30]} 16. Nf1 {[%emt 0:05:15]} h6 {[%emt 0:02:55]} 1/2-1/2

[Event "LJ Slovak Open 2022"]
[Site "Liptovsky Jan"]
[Date "2022.06.25"]
[Round "5.2"]
[White "Elias, David"]
[Black "Karas, Marek"]
[Result "1-0"]
[ECO "A30"]
[WhiteElo "1901"]
[BlackElo "2292"]
[Annotator "RC"]
[PlyCount "85"]
[EventDate "2022.06.23"]
[EventType "swiss"]
[EventCountry "SVK"]
[SourceTitle "playchess.com"]
[Source "ChessBase"]
[SourceQuality "1"]
[TimeControl "3600+30"]

1. Nf3 {[%emt 0:00:05]} g6 {[%emt 0:00:20]} 2. g3 {[%emt 0:00:13]} b6 {[%emt 0:00:27]} 3. Bg2 {[%emt 0:00:03]} Bb7 {[%emt 0:00:08]} 4. O-O {[%emt 0:00:04]} Bg7 {[%emt 0:00:11]} 5. c4 {[%emt 0:00:35]} c5 {[%emt 0:02:10]} 6. Nc3 {[%emt 0:02:04]} Nf6 {[%emt 0:00:13]} 7. d4 {[%emt 0:03:50]} cxd4 {[%emt 0:00:15]} 8. Nxd4 {[%emt 0:00:08]} Bxg2 {[%emt 0:00:09]} 9. Kxg2 {[%emt 0:00:03]} Qc8 {[%emt 0:00:48]} 10. b3 {[%emt 0:01:31]} d5 {[%emt 0:02:09]} 11. Nxd5 {[%emt 0:04:13]} Nxd5 {[%emt 0:00:19]} 12. cxd5 {[%emt 0:00:04]} Qc5 {[%emt 0:00:58]} 13. Be3 {[%emt 0:02:13]} Qxd5+ {[%emt 0:00:33]} 14. Nf3 {[%emt 0:00:32]} Qa5 {[%emt 0:01:31]} 15. Bd4 {[%emt 0:05:10]} e5 {[%emt 0:00:14]} 16. Bc3 {[%emt 0:08:11]} Qb5 {[%emt 0:03:51]} 17. a4 {[%emt 0:01:43]} Qc6 {[%emt 0:00:12]} 18. Rc1 {[%emt 0:00:17]} Qb7 {[%emt 0:02:08]} 19. Qd6 {[%emt 0:01:27]} Nc6 {[%emt 0:02:52]} 20. Bxe5 {[%emt 0:04:00]} Nxe5 {[%emt 0:02:31]} 21. Rc7 {[%emt 0:00:12]} Qxc7 {[%emt 0:00:11]} 22. Qxc7 {[%emt 0:00:12]} Nxf3 {[%emt 0:00:12]} 23. Qc6+ {[%emt 0:00:24]} Ke7 {[%emt 0:00:06]} 24. exf3 {[%emt 0:00:34]} Rhc8 {[%emt 0:00:46]} 25. Qb7+ {[%emt 0:00:41]} Kf8 {[%emt 0:00:02]} 26. Rc1 {[%emt 0:02:21]} Rcb8 {[%emt 0:00:20]} 27. Qa6 {[%emt 0:00:42]} Be5 {[%emt 0:00:17]} 28. f4 {[%emt 0:00:20]} Bd6 {[%emt 0:00:12]} 29. Rc6 {[%emt 0:00:34]} Rd8 {[%emt 0:00:31]} 30. a5 {[%emt 0:01:32]} Bc5 {[%emt 0:00:44]} 31. Rc7 {[%emt 0:00:39]} Bd6 {[%emt 0:01:03]} 32. Rxa7 {[%emt 0:00:55]} Rxa7 {[%emt 0:00:06]} 33. Qxa7 {[%emt 0:00:11]} bxa5 {[%emt 0:00:04]} 34. Qxa5 {[%emt 0:00:18]} Rb8 {[%emt 0:00:14]} 35. Qd5 {[%emt 0:00:27]} Ke7 {[%emt 0:00:47]} 36. f5 {[%emt 0:02:34]} gxf5 {[%emt 0:01:05]} 37. Qxf5 {[%emt 0:00:15]} h6 {[%emt 0:00:18]} 38. Qe4+ {[%emt 0:00:58]} Kf6 {[%emt 0:00:21]} 39. Qh4+ {[%emt 0:00:41]} Kg6 {[%emt 0:00:18]} 40. Qd4 {[%emt 0:00:39]} Bf8 {[%emt 0:00:31]} 41. Qe4+ {[%emt 0:00:39]} f5 {[%emt 0:00:31]} 42. Qe6+ {[%emt 0:00:44]} Kg7 {[%emt 0:00:16]} 43. Qe5+ {[%emt 0:00:02]} 1-0

[Event "LJ Slovak Open 2022"]
[Site "Liptovsky Jan"]
[Date "2022.06.25"]
[Round "5.3"]
[White "Skreko, Igor"]
[Black "Rucek, Kristian"]
[Result "1-0"]
[ECO "D33"]
[WhiteElo "2065"]
[BlackElo "2128"]
[Annotator "NA RC"]
[PlyCount "104"]
[EventDate "2022.06.23"]
[EventType "swiss"]
[EventCountry "SVK"]
[SourceTitle "playchess.com"]
[Source "ChessBase"]
[SourceQuality "1"]
[TimeControl "3600+30"]

1. d4 {[%emt 0:00:02]} d5 {[%emt 0:00:09]} 2. c4 {[%emt 0:00:06]} e6 {[%emt 0:00:46]} 3. Nc3 {[%emt 0:00:32]} c5 {[%emt 0:00:10]} 4. cxd5 {[%emt 0:00:21]} exd5 {[%emt 0:00:07]} 5. Nf3 {[%emt 0:00:12]} Nc6 {[%emt 0:00:07]} 6. g3 {[%emt 0:00:16]} Nf6 {[%emt 0:00:13]} 7. Bg2 {[%emt 0:00:11]} cxd4 {[%emt 0:00:18]} 8. Nxd4 {[%emt 0:00:06]} Bc5 {[%emt 0:00:04]} 9. Nb3 {[%emt 0:00:52]} Bb6 {[%emt 0:00:07]} 10. O-O {[%emt 0:02:40]} d4 {[%emt 0:00:09]} 11. Na4 {[%emt 0:01:37]} O-O {[%emt 0:00:07]} 12. Nxb6 {[%emt 0:01:39]} axb6 {[%emt 0:00:02]} 13. Bxc6 {[%emt 0:05:04]} bxc6 {[%emt 0:00:04]} 14. Qxd4 {[%emt 0:00:21]} Qc7 {[%emt 0:00:05]} 15. Bf4 {[%emt 0:00:34]} Qb7 {[%emt 0:00:04]} 16. Rfd1 {[%emt 0:05:22]} c5 {[%emt 0:00:48]} 17. Qd2 {[%emt 0:02:46]} Be6 {[%emt 0:05:36]} 18. f3 {[%emt 0:02:54]} Nd5 {[%emt 0:02:55]} 19. Be5 {[%emt 0:04:44]} Rfe8 {[%emt 0:03:34]} 20. Bc3 {[%emt 0:06:59]} f5 {[%emt 0:07:58]} 21. Nc1 {[%emt 0:04:28]} c4 {[%emt 0:07:32]} 22. a3 {[%emt 0:01:18]} Bf7 {[%emt 0:10:07]} 23. Qd4 {[%emt 0:03:40]} Nxc3 {[%emt 0:01:45]} 24. Qxc3 {[%emt 0:00:25]} Qc7 {[%emt 0:03:09]} 25. Kf2 {[%emt 0:02:27]} f4 {[%emt 0:00:49]} 26. Na2 {[%emt 0:02:26]} Qc5+ {[%emt 0:08:42]} 27. Qd4 {[%emt 0:01:54]} Qh5 {[%emt 0:00:07]} 28. Rh1 {[%emt 0:00:19]} Rad8 {[%emt 0:01:33]} 29. Qxf4 {[%emt 0:00:46]} Qc5+ {[%emt 0:00:05]} 30. Kf1 {[%emt 0:00:59]} Rd4 {[%emt 0:02:37]} 31. Qc1 {[%emt 0:00:41]} Red8 {[%emt 0:07:07]} 32. Nc3 {[%emt 0:01:32]} Bg6 {[%emt 0:00:04]} 33. Qe3 {[%emt 0:02:56]} Re8 {[%emt 0:02:31]} 34. Qf2 {[%emt 0:00:18]} Red8 {[%emt 0:02:45]} 35. Kg2 {[%emt 0:01:29]} Bc2 {[%emt 0:02:49]} 36. Rac1 {[%emt 0:01:12]} Bb3 {[%emt 0:00:10]} 37. Ne4 {[%emt 0:00:43]} Qe5 {[%emt 0:00:36]} 38. Rc3 {[%emt 0:00:44]} Rxe4 {[%emt 0:02:26]} 39. fxe4 {[%emt 0:00:26]} Rd2 {[%emt 0:00:28]} 40. Rf1 {[%emt 0:03:54]} Qxe4+ {[%emt 0:00:19]} 41. Kg1 {[%emt 0:00:07]} h6 {[%emt 0:01:02]} 42. Re3 {[%emt 0:00:31]} Qd4 {[%emt 0:00:50]} 43. Qf8+ {[%emt 0:04:33]} Kh7 {[%emt 0:00:01]} 44. Qf5+ {[%emt 0:00:19]} Kg8 {[%emt 0:00:01]} 45. Qe6+ {[%emt 0:00:34]} Kh7 {[%emt 0:00:22]} 46. Rf8 {[%emt 0:00:59]} c3 {[%emt 0:01:16]} 47. Qe8 {[%emt 0:02:42]} Bf7 {[%emt 0:00:07]} 48. Rh8+ {[%emt 0:01:47]} Kg6 {[%emt 0:00:13]} 49. Qc6+ {[%emt 0:00:13]} Kg5 {[%emt 0:01:04]} 50. Qxc3 {[%emt 0:00:29]} Rd1+ {[%emt 0:00:38]} 51. Kf2 {[%emt 0:00:21]} Qd7 {[%emt 0:00:50]} 52. Qxg7+ {[%emt 0:00:32]} Kf5 {[%emt 0:00:18]} 1-0

[Event "LJ Slovak Open 2022"]
[Site "Liptovsky Jan"]
[Date "2022.06.25"]
[Round "5.4"]
[White "Holly, Andrej"]
[Black "Freibergs, Andrejs"]
[Result "1-0"]
[ECO "A24"]
[WhiteElo "2214"]
[BlackElo "1526"]
[Annotator "RC"]
[PlyCount "67"]
[EventDate "2022.06.23"]
[EventType "swiss"]
[EventCountry "SVK"]
[SourceTitle "playchess.com"]
[Source "ChessBase"]
[SourceQuality "1"]
[TimeControl "3600+30"]

1. c4 {[%emt 0:00:04]} Nf6 {[%emt 0:00:18]} 2. g3 {[%emt 0:00:03]} g6 {[%emt 0:00:09]} 3. Bg2 {[%emt 0:00:04]} Bg7 {[%emt 0:00:20]} 4. Nc3 {[%emt 0:00:11]} O-O {[%emt 0:00:22]} 5. e4 {[%emt 0:00:04]} e5 {[%emt 0:00:31]} 6. Nge2 {[%emt 0:00:18]} c5 {[%emt 0:00:18]} 7. d3 {[%emt 0:00:36]} Ne8 {[%emt 0:02:24]} 8. O-O {[%emt 0:00:28]} d6 {[%emt 0:01:46]} 9. f4 {[%emt 0:00:21]} Nc6 {[%emt 0:04:11]} 10. f5 {[%emt 0:01:04]} Nc7 {[%emt 0:00:31]} 11. Be3 {[%emt 0:01:50]} Bd7 {[%emt 0:02:30]} 12. Qd2 {[%emt 0:00:32]} f6 {[%emt 0:01:39]} 13. h4 {[%emt 0:01:23]} Qe7 {[%emt 0:03:24]} 14. g4 {[%emt 0:00:19]} Rf7 {[%emt 0:00:40]} 15. Ng3 {[%emt 0:02:36]} Raf8 {[%emt 0:06:44]} 16. Rf2 {[%emt 0:01:19]} Nd4 {[%emt 0:05:04]} 17. Raf1 {[%emt 0:03:28]} Qe8 {[%emt 0:02:59]} 18. Bh1 {[%emt 0:04:03]} a6 {[%emt 0:06:08]} 19. Rh2 {[%emt 0:00:18]} b5 {[%emt 0:01:09]} 20. b3 {[%emt 0:00:27]} a5 {[%emt 0:01:55]} 21. h5 {[%emt 0:04:06]} g5 {[%emt 0:00:14]} 22. h6 {[%emt 0:00:17]} Bh8 {[%emt 0:00:07]} 23. Bxg5 {[%emt 0:00:18]} b4 {[%emt 0:06:30]} 24. Nd5 {[%emt 0:00:26]} Nxd5 {[%emt 0:00:08]} 25. exd5 {[%emt 0:00:14]} a4 {[%emt 0:01:44]} 26. Be3 {[%emt 0:01:09]} Re7 {[%emt 0:01:45]} 27. Bxd4 {[%emt 0:00:53]} exd4 {[%emt 0:00:13]} 28. Ne4 {[%emt 0:00:17]} Rxe4 {[%emt 0:02:09]} 29. Bxe4 {[%emt 0:00:19]} a3 {[%emt 0:00:35]} 30. g5 {[%emt 0:02:21]} fxg5 {[%emt 0:00:04]} 31. Qxg5+ {[%emt 0:03:28]} Kf7 {[%emt 0:00:09]} 32. Qh5+ {[%emt 0:00:35]} Kf6 {[%emt 0:00:06]} 33. Qh4+ {[%emt 0:00:46]} Kf7 {[%emt 0:00:05]} 34. f6 {[%emt 0:00:22]} 1-0